lending/lending_fUSD_20250430
["ID","MTS","AMOUNT","RATE_DAILY","PERIOD"]
[359423339,1746004252614,-1000.0,0.00037181,7]
[359423341,1746004252623,-150.0,0.00037181,2]
[359423343,1746004252633,-150.0,0.00037187,2]
[359423345,1746004252644,-1000.0,0.00037187,7]
[359423347,1746004252654,-150.0,0.00037193,2]
[359423349,1746004252665,-150.0,0.00037218,2]
[359423351,1746004252674,-150.0,0.00037221,2]
[359423353,1746004252685,-150.0,0.00037224,2]
[359423355,1746004252694,-150.0,0.00037232,2]
[359423357,1746004252705,-150.0,0.00037232,2]
[359423359,1746004252714,-150.0,0.00037234,2]
[359423361,1746004252725,-150.0,0.00037236,2]
[359423363,1746004252734,-1000.0,0.00037237,7]
[359423365,1746004252743,-150.0,0.0003724,2]
[359423367,1746004252754,-150.0,0.00037256,2]
[359423369,1746004252763,-150.0,0.00037266,2]
[359423371,1746004252773,-1000.0,0.00037268,7]
[359423373,1746004252782,-1000.0,0.00037268,7]
[359423375,1746004252793,-150.0,0.00037291,2]
[359423377,1746004252802,-1000.0,0.00037291,7]
[359423379,1746004252812,-150.0,0.00037294,2]
[359423381,1746004252823,-150.0,0.00037307,2]
[359423383,1746004252832,-150.0,0.00037338,2]
[359423385,1746004252842,-1000.0,0.00037338,7]
[359423387,1746004252852,-150.0,0.00037348,2]
[359423389,1746004252861,-150.0,0.00037374,2]
[359423391,1746004252871,-150.0,0.00037382,2]
[359423394,1746004252881,-1000.0,0.00037385,7]
[359423396,1746004252892,-150.0,0.00037389,2]
[359423398,1746004252902,-150.0,0.0003739,2]
[359423400,1746004252911,-150.0,0.00037395,2]
[359423402,1746004252921,-150.0,0.00037399,2]
[359423404,1746004252931,-150.0,0.00037403,2]
[359423406,1746004252940,-152.0,0.00037415,5]
[359423408,1746004252949,-150.0,0.00037428,2]
[359423410,1746004252959,-55417.35194244,0.0003743,2]
[359423412,1746004252968,-1000.0,0.0003744,7]
[359423414,1746004252977,-150.0,0.00037457,2]
[359423416,1746004252992,-150.0,0.00037465,2]
[359423418,1746004253001,-151.0,0.0003748,2]
[359423420,1746004253011,-320.74051982,0.0003748,2]
[359423422,1746004253020,-1926.13,0.00037498,2]
[359423424,1746004253029,-150.0,0.00037501,2]
[359423426,1746004253038,-150.0,0.00037515,2]
[359423428,1746004253048,-165.60048541,0.00037518,7]
[359423430,1746004253057,-150.0,0.00037522,2]
[359423432,1746004253066,-150.0,0.00037536,2]
[359423434,1746004253077,-150.0,0.0003754,7]
[359423436,1746004253086,-150.0,0.00037543,2]
[359423438,1746004253096,-150.0,0.00037552,2]
[359423440,1746004253106,-150.0,0.00037557,2]
[359423442,1746004253118,-150.0,0.00037577,2]
[359423445,1746004253128,-150.0,0.00037583,2]
[359423447,1746004253140,-1000.0,0.00037592,7]
[359423449,1746004253152,-150.0,0.00037616,2]
[359423451,1746004253162,-150.0,0.00037618,2]
[359423453,1746004253171,-150.0,0.00037624,2]
[359423455,1746004253180,-150.0,0.00037636,2]
[359423457,1746004253190,-150.0,0.00037665,2]
[359423459,1746004253199,-150.0,0.00037675,2]
[359423461,1746004253209,-150.0,0.00037678,2]
[359423463,1746004253219,-150.0,0.0003769,2]
[359423465,1746004253229,-272.53932395,0.00037708,2]
[359423467,1746004253239,-150.0,0.00037715,2]
[359423469,1746004253248,-206.0,0.0003773,2]
[359423471,1746004253258,-150.0,0.0003773,2]
[359423473,1746004253267,-150.0,0.00037744,2]
[359423475,1746004253277,-150.0,0.00037764,2]
[359423477,1746004253286,-150.0,0.00037764,2]
[359423479,1746004253296,-150.0,0.0003778,2]
[359423481,1746004253306,-150.0,0.00037786,2]
[359423495,1746004253432,-3462.32840475,0.000378,2]
[359423496,1746004253442,-1132.31,0.000378,2]
[359423497,1746004253451,-150.0,0.000378,2]
[359423498,1746004253464,-150.0,0.00037805,2]
[359423499,1746004253474,-1000.0,0.00037805,2]
[359423501,1746004253483,-936.59814272,0.00037807,2]
[359423503,1746004253493,-1000.0,0.00037807,2]
[359423505,1746004253503,-2000.0,0.00037807,2]
[359423507,1746004253512,-200.0,0.00037808,2]
[359423509,1746004253522,-169.09868086,0.00037808,30]
[359423511,1746004253532,-2392.69424247,0.00037831,14]
[359423513,1746004253541,-151.0,0.00037873,7]
[359423515,1746004253551,-154.600672,0.00037873,7]
[359423517,1746004253560,-171.95,0.00037877,2]
[359423519,1746004253570,-42237.01371796,0.00038,2]
[359423521,1746004253579,-92593.41689776,0.00038,2]
[359423523,1746004253589,-2610.44601677,0.00038,30]
[359423525,1746004253599,-151.0,0.00038,7]
[359423527,1746004253609,-151.0,0.00038,7]
[359423529,1746004253619,-151.0,0.00038,7]
[359423531,1746004253629,-151.0,0.00038,7]
[359423533,1746004253638,-152.151952,0.00038,7]
[359423535,1746004253648,-151.0,0.00038,7]
[359423538,1746004253658,-151.0,0.00038,7]
[359423540,1746004253667,-233.662819,0.00038,7]
[359423542,1746004253676,-233.662819,0.00038,7]
[359423544,1746004253686,-151.0,0.00038,7]
[359423546,1746004253695,-151.0,0.00038,7]
[359423548,1746004253705,-153.528094,0.00038,7]
[359423550,1746004253714,-161.200205,0.00038,7]
[359423552,1746004253723,-151.0,0.00038,7]
[359423553,1746004253732,-151.0,0.00038,7]
[359423555,1746004253742,-151.0,0.00038,7]
[359423557,1746004253751,-300.0,0.00038,2]
[359423559,1746004253761,-797.0,0.00038078,2]
[359423562,1746004253771,-580.0,0.00038078,2]
[359423563,1746004253781,-913.0,0.00038078,2]
[359423566,1746004253791,-549.0,0.00038078,2]
[359423568,1746004253801,-2068.0,0.00038078,2]
[359423570,1746004253810,-4001.0,0.00038078,2]
[359423571,1746004253819,-878.0,0.00038078,2]
[359423573,1746004253830,-153.0,0.00038078,2]
[359423576,1746004253839,-6746.0,0.00038078,2]
[359423578,1746004253849,-1000.0,0.000381,7]
[359423580,1746004253858,-505.59,0.000382,31]
[359423582,1746004253868,-505.59,0.000382,31]
[359423584,1746004253877,-505.59,0.000382,31]
[359423586,1746004253886,-505.59,0.000382,31]
[359423588,1746004253895,-505.59,0.000382,31]
[359423590,1746004253905,-505.59,0.000382,31]
[359423592,1746004253915,-505.59,0.000382,31]
[359423594,1746004253925,-505.59,0.000382,31]
[359423596,1746004253935,-505.59,0.000382,31]
[359423598,1746004253944,-505.59,0.000382,31]
[359423600,1746004253953,-505.59,0.000382,31]
[359423602,1746004253963,-505.59,0.000382,31]
[359423604,1746004253972,-500.0,0.00038223,10]
[359423606,1746004253983,-500.0,0.00038232,10]
[359423608,1746004253992,-464.8996168,0.00038241,10]
[359423610,1746004254002,-500.0,0.00038356,120]
[359423612,1746004254011,-500.0,0.00038356,120]
[359423613,1746004254020,-500.0,0.00038356,120]
[359423615,1746004254030,-500.0,0.00038356,120]
[359423617,1746004254040,-500.0,0.00038356,120]
[359423619,1746004254049,-500.0,0.00038356,120]
[359423621,1746004254058,-500.0,0.00038356,120]
[359423623,1746004254067,-500.0,0.00038356,120]
[359423625,1746004254077,-500.0,0.00038356,120]
[359423627,1746004254086,-500.0,0.00038356,120]
[359423629,1746004254095,-500.0,0.00038356,120]
[359423631,1746004254105,-500.0,0.00038356,120]
[359423633,1746004254114,-500.0,0.00038356,120]
[359423635,1746004254124,-476.89531855,0.00038356,120]
[359423637,1746004254134,-234.78011159,0.00038356,2]
[359423640,1746004254144,-150.0,0.0003838,2]
[359423642,1746004254154,-3726.4,0.000384,14]
[359423644,1746004254163,-2000.0,0.000384,2]
[359423645,1746004254173,-1330.0,0.000385,120]
[359423647,1746004254182,-5800.0,0.0003863,2]
[359423649,1746004254191,-152.0,0.00038673,6]
[359423651,1746004254201,-2392.69424247,0.00038728,14]
[359423654,1746004254211,-151.0,0.00038849,2]
[359423655,1746004254221,-332.60791905,0.00038849,2]
[359423657,1746004254233,-206.0,0.0003886,2]
[359423659,1746004254243,-350.43,0.00038865,2]
[359423662,1746004254253,-150.0,0.00038896,30]
[359423663,1746004254262,-367.26,0.00038933,2]
[359423666,1746004254272,-72076.95058332,0.0003899,2]
[359423668,1746004254281,-1925.45745347,0.00039,120]
[359423670,1746004254291,-800.0,0.00039,2]
[359423671,1746004254300,-282.57682101,0.00039325,13]
[359423673,1746004254310,-1000.0,0.000394,7]
[359423675,1746004254320,-2392.69424247,0.00039624,15]
[359423677,1746004254329,-1926.13,0.00039762,2]
[359423679,1746004254339,-350.43,0.00039824,2]
[359423681,1746004254348,-3390.67020165,0.000399,14]
[359423732,1746004254844,-335.72979835,0.000399,14]
[359423734,1746004254854,-152.0,0.00039931,7]
[359423736,1746004254863,-150.0,0.00039992,30]
[359423738,1746004254873,-153.091483,0.00039999,14]
[359423740,1746004254883,-151.0,0.00039999,14]
[359423742,1746004254893,-151.0,0.00039999,7]
[359423744,1746004254903,-163.253044,0.00039999,14]
[359423746,1746004254912,-151.0,0.00039999,14]
[359423748,1746004254922,-162.929641,0.00039999,14]
[359423750,1746004254931,-206.0,0.0004,2]
[359423752,1746004254940,-207.0,0.0004,30]
[359423754,1746004254950,-2054.19166668,0.0004,4]
[359423756,1746004254959,-157.39,0.0004,30]
[359423758,1746004254968,-157.39,0.0004,30]
[359423760,1746004254978,-500.0,0.0004,120]
[359423761,1746004254988,-505.59,0.000401,31]
[359423763,1746004254997,-505.59,0.000401,31]
[359423765,1746004255007,-505.59,0.000401,31]
[359423767,1746004255016,-505.59,0.000401,31]
[359423769,1746004255025,-505.59,0.000401,31]
[359423771,1746004255035,-505.59,0.000401,31]
[359423773,1746004255044,-505.59,0.000401,31]
[359423775,1746004255054,-505.59,0.000401,31]
[359423777,1746004255063,-505.59,0.000401,31]
[359423779,1746004255073,-505.59,0.000401,31]
[359423781,1746004255083,-505.59,0.000401,31]
[359423783,1746004255092,-505.59,0.000401,31]
[359423785,1746004255102,-505.59,0.000401,31]
[359423787,1746004255111,-505.59,0.000401,31]
[359423789,1746004255120,-505.59,0.000401,31]
[359423791,1746004255130,-505.59,0.000401,31]
[359423793,1746004255139,-505.59,0.000401,31]
[359423795,1746004255149,-505.59,0.000401,31]
[359423797,1746004255158,-505.59,0.000401,31]
[359423799,1746004255167,-505.59,0.000401,31]
[359423801,1746004255177,-505.59,0.000401,31]
[359423803,1746004255186,-357.06436697,0.000401,31]
[359424691,1746004298094,150.0,0.000378,30]
[359424692,1746004350450,998.70332162,0.00037808,60]
[359424693,1746004413855,6521.63160514,0.00037,30]
[359424694,1746004671507,200.13779283,0.000378,30]
[359424695,1746004708038,175.362,0.00037648,49]
[359424696,1746004708074,1756.228,0.00037648,49]
[359424697,1746004797934,1511.3,0.00037808,30]
[359424698,1746004960229,2446.04,0.00031867,120]
[359424699,1746005055061,670.29979157,0.00035665,37]
[359424700,1746005098943,423.99,0.00035,30]
[359424701,1746005110203,254.0,0.000154,2]
[359424702,1746005110223,282.0,0.000154,2]
[359424703,1746005110246,464.0,0.000154,2]
[359424704,1746005162748,188.56,0.00031054,120]
[359424705,1746005202448,150.0,0.000378,30]
[359424706,1746005339796,4000.0,0.0003,30]
[359424728,1746005432236,-250.0,0.00019889,2]
[359424729,1746005432246,-200.0,0.00019889,2]
[359424730,1746005432256,-68.6512963,0.00019894,2]
[359424731,1746005432271,-131.3487037,0.00019894,2]
[359424732,1746005432281,-1200.0,0.00019899,2]
[359424733,1746005432291,-300.0,0.00019899,2]
[359424734,1746005432300,-196.0512963,0.000199,2]
[359424735,1746005432326,-40297.33074637,0.000199,2]
[359424736,1746005432335,-12500.0,0.000199,2]
[359424737,1746005432346,-224.88649701,0.000199,2]
[359424738,1746005432355,-164.8678569,0.000199,2]
[359424739,1746005432365,-2500.0,0.000199,2]
[359424740,1746005432375,-1476.2536,0.000199,2]
[359424741,1746005432384,-4036.73455972,0.000199,2]
[359424742,1746005432394,-1247.7940643,0.000199,2]
[359424743,1746005432403,-200.0,0.00019928,2]
[359424744,1746005432412,-503.43658177,0.00019973,2]
[359424745,1746005432422,-500.0,0.00019973,2]
[359424746,1746005432431,-195.7049767,0.00019973,2]
[359424747,1746005432441,-22763.97429449,0.0001998,2]
[359424748,1746005432451,-250.0,0.00019986,2]
[359424749,1746005432460,-300.0,0.00019999,2]
[359424750,1746005432470,-500.0,0.00019999,2]
[359424751,1746005432479,-500.0,0.00019999,2]
[359424752,1746005432488,-162.86045543,0.00019999,2]
[359424753,1746005432497,-334.70532131,0.00019999,2]
[359424754,1746005432507,-874.9412743,0.00019999,2]
[359424755,1746005432516,-242.62361619,0.00019999,2]
[359424756,1746005432526,-874.9412743,0.00019999,2]
[359424757,1746005432535,-177.50796555,0.00019999,2]
[359424758,1746005432545,-874.9412743,0.00019999,2]
[359424759,1746005432555,-874.9412743,0.00019999,2]
[359424760,1746005432565,-874.9412743,0.00019999,2]
[359424761,1746005432574,-874.9412743,0.00019999,2]
[359424762,1746005432583,-874.9412743,0.00019999,2]
[359424763,1746005432593,-874.9412743,0.00019999,2]
[359424764,1746005432602,-874.9412743,0.00019999,2]
[359424765,1746005432611,-874.9412743,0.00019999,2]
[359424766,1746005432620,-874.9412743,0.00019999,2]
[359424767,1746005432629,-874.9412743,0.00019999,2]
[359424769,1746005432768,-874.9412743,0.00019999,2]
[359424770,1746005432782,-874.9412743,0.00019999,2]
[359424771,1746005432791,-874.9412743,0.00019999,2]
[359424772,1746005432801,-874.9412743,0.00019999,2]
[359424773,1746005432810,-874.9412743,0.00019999,2]
[359424774,1746005432820,-874.9412743,0.00019999,2]
[359424775,1746005432830,-930.61935539,0.00019999,2]
[359424776,1746005432840,-930.61935539,0.00019999,2]
[359424777,1746005432850,-930.61935539,0.00019999,2]
[359424778,1746005432859,-930.61935539,0.00019999,2]
[359424779,1746005432868,-930.61935539,0.00019999,2]
[359424780,1746005432879,-930.61935539,0.00019999,2]
[359424781,1746005432888,-930.61935539,0.00019999,2]
[359424782,1746005432898,-930.61935539,0.00019999,2]
[359424783,1746005432907,-1186.53967812,0.00019999,2]
[359424784,1746005432917,-1186.53967812,0.00019999,2]
[359424785,1746005432926,-288211.96831375,0.0002,2]
[359424786,1746005432939,-36028.48809364,0.0002,2]
[359424787,1746005432951,-3096.96083967,0.0002,2]
[359424788,1746005432963,-53493.95410163,0.0002,2]
[359424789,1746005432975,-653.51,0.0002,2]
[359424790,1746005432986,-298.86,0.0002,2]
[359424791,1746005432997,-2476.80862768,0.0002,2]
[359424792,1746005433008,-438.0731763,0.0002,2]
[359424793,1746005433020,-14230.54665447,0.0002,2]
[359424794,1746005433032,-2481.55877801,0.0002,2]
[359424795,1746005433044,-3894.63008053,0.0002,2]
[359424800,1746005438278,-158.69407634,0.000199,2]
[359424801,1746005438287,-16009.37032628,0.0002,2]
[359424802,1746005438312,-24443.31406339,0.0002,2]
[359424803,1746005438422,-25040.05705227,0.0002,2]
[359424804,1746005438435,-5411137.86061636,0.0002,2]
[359424998,1746005440499,-797.6518777,0.000199,2]
[359425004,1746005440556,-1331.10000353,0.000199,2]
[359425007,1746005440568,-10496.20055315,0.000199,2]
[359425009,1746005440579,-1888.98,0.000199,2]
[359425014,1746005440617,-15437.9,0.000199,2]
[359425021,1746005440674,-1334.60727829,0.000199,2]
[359425023,1746005440684,-2069.04349002,0.0002,2]
[359425051,1746005443554,-8749.99999999,0.0002,2]
[359425052,1746005443662,-92351.33399999,0.0002,2]
[359425053,1746005443694,-151.00302701,0.0002,2]
[359425062,1746005446179,-4477684.28264314,0.0002,2]
[359425065,1746005446288,-9191.2,0.0002,2]
[359425066,1746005446299,-6138.54824603,0.0002,2]
[359425067,1746005446345,-5673.67566855,0.0002,2]
[359425068,1746005446403,-2559.82380021,0.0002,2]
[359425069,1746005446415,-3423.169923,0.0002,2]
[359425070,1746005446513,-13602.89335895,0.0002,2]
[359425123,1746005724266,150.0,0.00017,2]
[359425124,1746005724289,100.0,0.00017,2]
[359425125,1746005724421,300.0,0.00019,2]
[359425126,1746005820306,159.043017,0.000378,120]
[359425127,1746005828931,500.0,0.00037808,30]
[359425128,1746005832417,150.043017,0.000378,120]
[359425129,1746005833466,150.043017,0.000378,120]
[359425130,1746005834284,150.043017,0.000378,120]
[359425131,1746005835015,150.043017,0.000378,120]
[359425132,1746005846995,190.043017,0.000378,120]
[359425133,1746005849369,500.0,0.00037808,30]
[359425134,1746005863944,728.69,0.00037808,30]
[359425286,1746006106158,239.69641075,0.000378,30]
[359425287,1746006122702,314.71072806,0.00037808,30]
[359425288,1746006298917,-2000.0,0.0002,4]
[359425289,1746006524285,388.24133471,0.000378,120]
[359425290,1746006530046,1567.52,0.00019416,2]
[359425291,1746006535313,50000.0,0.00037808,30]
[359425293,1746006602002,495.102031,0.0002,4]
[359425301,1746006631430,-1235.83,0.00019545,2]
[359425302,1746006631440,-250.0,0.00019552,2]
[359425303,1746006631449,-200.0,0.00019552,2]
[359425304,1746006631459,-250.0,0.00019587,2]
[359425305,1746006631468,-200.0,0.00019587,2]
[359425306,1746006631478,-1944.328,0.000196,2]
[359425307,1746006631488,-174.093,0.000196,2]
[359425308,1746006631499,-300.0,0.00019657,2]
[359425309,1746006631508,-300.0,0.00019658,2]
[359425310,1746006631518,-1200.0,0.00019658,2]
[359425311,1746006631527,-23900.0,0.00019659,2]
[359425312,1746006631537,-1000.0,0.00019728,2]
[359425313,1746006631546,-8740.6536,0.000198,2]
[359425314,1746006631556,-19316.2759,0.00019873,2]
[359425315,1746006631566,-631.0568,0.00019873,2]
[359425316,1746006631576,-165.89191392,0.00019873,2]
[359425317,1746006631585,-500.0,0.00019873,2]
[359425318,1746006631595,-167.19688306,0.00019873,2]
[359425319,1746006631604,-500.0,0.00019873,2]
[359425320,1746006631613,-500.0,0.00019873,2]
[359425321,1746006631623,-500.0,0.00019873,2]
[359425322,1746006631632,-182.24626746,0.00019873,2]
[359425323,1746006631641,-281.01428975,0.00019873,2]
[359425324,1746006631651,-500.0,0.00019873,2]
[359425325,1746006631661,-500.0,0.00019873,2]
[359425326,1746006631670,-607.62589314,0.00019873,2]
[359425327,1746006631679,-500.0,0.00019873,2]
[359425328,1746006631688,-43112.9153282,0.00019899,2]
[359425329,1746006631700,-2092.54521618,0.00019899,2]
[359425334,1746006631826,-365.19994533,0.00019899,2]
[359425335,1746006631839,-970.99304133,0.00019899,2]
[359425336,1746006631851,-906.39902766,0.00019899,2]
[359425337,1746006631890,-6085.71634707,0.00019899,2]
[359425338,1746006631905,-13162.00166556,0.00019899,2]
[359425339,1746006631916,-610.44814184,0.00019899,2]
[359425340,1746006631934,-2374.49246916,0.00019899,2]
[359425341,1746006631945,-927.61514,0.00019899,2]
[359425342,1746006631960,-948.9,0.00019899,2]
[359425343,1746006631971,-327.467112,0.00019899,2]
[359425344,1746006631981,-1353.29428103,0.00019899,2]
[359425345,1746006631993,-915.15810786,0.00019899,2]
[359425346,1746006632002,-158.74614217,0.00019899,2]
[359425347,1746006632017,-225.49644467,0.00019899,2]
[359425348,1746006632027,-505.622,0.000199,2]
[359425349,1746006632036,-435.14438174,0.000199,2]
[359425350,1746006632048,-64.85561826,0.000199,2]
[359425351,1746006632057,-499.2357841,0.000199,2]
[359425352,1746006632068,-312.5,0.000199,2]
[359425353,1746006632080,-576.72388548,0.000199,2]
[359425354,1746006632091,-9261.98473042,0.000199,2]
[359425355,1746006632102,-1000.0,0.000199,2]
[359425356,1746006632112,-2697.8771,0.000199,2]
[359425357,1746006632121,-565.15364205,0.000199,2]
[359425358,1746006632131,-29710.35925475,0.000199,2]
[359425361,1746006637458,-809.45144559,0.000199,2]
[359425362,1746006637511,-426.91606732,0.000199,2]
[359425363,1746006637669,-358.33485164,0.000199,2]
[359425364,1746006637680,-14148.63669923,0.000199,2]
[359425365,1746006637689,-874.5938,0.000199,2]
[359425366,1746006637699,-2500.0,0.000199,2]
[359425367,1746006637708,-289.57998053,0.000199,2]
[359425368,1746006637717,-168.56609644,0.000199,2]
[359425369,1746006637727,-1265.17105895,0.000199,2]
[359425370,1746006637739,-133.98269222,0.000199,2]
[359425371,1746006637749,-219.31842447,0.000199,2]
[359425372,1746006637764,-512.48227853,0.00019973,2]
[359425373,1746006637774,-500.0,0.00019973,2]
[359425375,1746006637783,-605.49057199,0.00019973,2]
[359425377,1746006637792,-280.17388614,0.00019973,2]
[359425379,1746006637802,-500.0,0.00019973,2]
[359425381,1746006637812,-500.0,0.00019973,2]
[359425383,1746006637822,-500.0,0.00019973,2]
[359425385,1746006637834,-500.0,0.00019973,2]
[359425387,1746006637844,-1000.0,0.00019973,2]
[359425389,1746006637853,-1000.0,0.00019973,2]
[359425391,1746006637863,-1000.0,0.00019973,2]
[359425393,1746006637872,-1000.0,0.00019973,2]
[359425395,1746006637881,-1000.0,0.00019973,2]
[359425397,1746006637891,-1000.0,0.00019973,2]
[359425399,1746006637901,-1000.0,0.00019973,2]
[359425401,1746006637911,-1000.0,0.00019973,2]
[359425403,1746006637920,-1000.0,0.00019973,2]
[359425405,1746006637929,-1000.0,0.00019973,2]
[359425407,1746006637938,-1000.0,0.00019973,2]
[359425409,1746006637947,-1000.0,0.00019973,2]
[359425411,1746006637957,-1000.0,0.00019973,2]
[359425412,1746006637967,-1000.0,0.00019973,2]
[359425414,1746006637976,-1000.0,0.00019973,2]
[359425417,1746006637986,-1000.0,0.00019973,2]
[359425418,1746006637995,-1000.0,0.00019973,2]
[359425421,1746006638005,-1000.0,0.00019973,2]
[359425422,1746006638014,-1000.0,0.00019973,2]
[359425424,1746006638023,-1000.0,0.00019973,2]
[359425427,1746006638036,-1000.0,0.00019973,2]
[359425428,1746006638045,-1000.0,0.00019973,2]
[359425431,1746006638054,-1000.0,0.00019973,2]
[359425433,1746006638064,-1000.0,0.00019973,2]
[359425435,1746006638074,-1000.0,0.00019973,2]
[359425437,1746006638084,-1000.0,0.00019973,2]
[359425439,1746006638094,-1000.0,0.00019973,2]
[359425440,1746006638103,-1000.0,0.00019973,2]
[359425442,1746006638112,-1000.0,0.00019973,2]
[359425444,1746006638121,-1000.0,0.00019973,2]
[359425446,1746006638131,-1000.0,0.00019973,2]
[359425448,1746006638140,-1000.0,0.00019973,2]
[359425450,1746006638150,-1000.0,0.00019973,2]
[359425452,1746006638159,-1000.0,0.00019973,2]
[359425454,1746006638168,-1000.0,0.00019973,2]
[359425456,1746006638178,-1000.0,0.00019973,2]
[359425458,1746006638187,-1000.0,0.00019973,2]
[359425460,1746006638196,-1000.0,0.00019973,2]
[359425462,1746006638205,-1000.0,0.00019973,2]
[359425464,1746006638215,-1000.0,0.00019973,2]
[359425466,1746006638225,-1000.0,0.00019973,2]
[359425468,1746006638234,-1000.0,0.00019973,2]
[359425470,1746006638243,-1000.0,0.00019973,2]
[359425472,1746006638252,-1000.0,0.00019973,2]
[359425474,1746006638261,-1000.0,0.00019973,2]
[359425476,1746006638270,-1000.0,0.00019973,2]
[359425478,1746006638279,-1000.0,0.00019973,2]
[359425480,1746006638288,-1000.0,0.00019973,2]
[359425482,1746006638298,-1000.0,0.00019973,2]
[359425484,1746006638307,-1000.0,0.00019973,2]
[359425486,1746006638316,-1000.0,0.00019973,2]
[359425488,1746006638326,-1000.0,0.00019973,2]
[359425490,1746006638335,-500.0,0.00019973,2]
[359425492,1746006638344,-500.0,0.00019973,2]
[359425494,1746006638355,-500.0,0.00019973,2]
[359425496,1746006638365,-500.0,0.00019973,2]
[359425498,1746006638375,-500.0,0.00019973,2]
[359425500,1746006638384,-500.0,0.00019973,2]
[359425502,1746006638393,-502.19667785,0.00019973,2]
[359425504,1746006638403,-500.86272975,0.00019973,2]
[359425506,1746006638412,-501.74607688,0.00019973,2]
[359425508,1746006638421,-500.0,0.00019973,2]
[359425510,1746006638431,-500.0,0.00019973,2]
[359425512,1746006638441,-243.25265261,0.00019973,2]
[359425514,1746006638450,-301.84461807,0.00019973,2]
[359425516,1746006638459,-501.90027515,0.00019973,2]
[359425518,1746006638469,-500.0,0.00019973,2]
[359425520,1746006638478,-208.35397282,0.00019973,2]
[359425522,1746006638488,-60000.0,0.0001998,2]
[359425524,1746006638496,-234.29372491,0.00019985,2]
[359425526,1746006638506,-512.71558674,0.00019985,2]
[359425528,1746006638515,-512.71558674,0.00019985,2]
[359425530,1746006638524,-512.71558674,0.00019985,2]
[359425532,1746006638534,-512.71558674,0.00019985,2]
[359425534,1746006638544,-512.71558674,0.00019985,2]
[359425536,1746006638554,-512.71558674,0.00019985,2]
[359425538,1746006638563,-512.71558674,0.00019985,2]
[359425540,1746006638572,-512.71558674,0.00019985,2]
[359425542,1746006638582,-512.71558674,0.00019985,2]
[359425544,1746006638591,-512.71558674,0.00019985,2]
[359425546,1746006638600,-512.71558674,0.00019985,2]
[359425548,1746006638610,-512.71558674,0.00019985,2]
[359425550,1746006638619,-512.71558674,0.00019985,2]
[359425552,1746006638628,-512.71558674,0.00019985,2]
[359425554,1746006638638,-512.71558674,0.00019985,2]
[359425556,1746006638646,-919.17353272,0.00019985,2]
[359425558,1746006638656,-919.17353272,0.00019985,2]
[359425560,1746006638665,-919.17353272,0.00019985,2]
[359425561,1746006638674,-919.17353272,0.00019985,2]
[359425563,1746006638684,-919.17353272,0.00019985,2]
[359425565,1746006638693,-919.17353272,0.00019985,2]
[359425567,1746006638702,-919.17353272,0.00019985,2]
[359425569,1746006638711,-919.17353272,0.00019985,2]
[359425571,1746006638721,-919.17353272,0.00019985,2]
[359425573,1746006638730,-9051.3481161,0.00019986,2]
[359425575,1746006638739,-370.0081681,0.00019986,2]
[359425577,1746006638749,-5408.0458542,0.00019986,2]
[359425579,1746006638762,-5939.2495047,0.00019986,2]
[359425581,1746006638772,-23152.34328466,0.00019986,2]